[Event "ETCC Open 2023"]
[Site "Budva"]
[Date "2023.11.14"]
[Round "4.17"]
[White "Martirosyan, Haik M."]
[Black "Rodshtein, Maxim"]
[Result "1-0"]
[ECO "D43"]
[WhiteElo "2708"]
[BlackElo "2582"]
[Annotator "TA"]
[PlyCount "101"]
[EventDate "2023.11.10"]
[EventType "team-tourn"]
[EventCountry "MNE"]
[SourceTitle "playchess.com"]
[Source "ChessBase"]
[SourceQuality "1"]
[WhiteTeam "Armenia"]
[BlackTeam "Israel"]
[WhiteTeamCountry "ARM"]
[BlackTeamCountry "ISR"]
[TimeControl "40/5400+30:1800+30"]

{[%evp 14,101,32,17,18,10,36,30,32,29,28,40,31,22,31,24,30,30,34,17,25,20,29,21,45,13,4,10,7,16,20,18,22,21,26,19,22,23,22,22,21,22,33,6,42,41,50,34,49,53,43,47,70,67,75,72,90,4,79,79,84,72,170,160,155,117,108,49,72,62,34,43,310,319,312,304,412,445,440,439,434,429,412,244,414,417,564,496,560,501]} 1. d4 {[%emt 0:00:04]} Nf6 {[%emt 0:00:15]} 2. c4 {[%emt 0:00:11]} e6 {[%emt 0:00:14]} 3. Nf3 {[%emt 0:00:17]} d5 {[%emt 0:00:13]} 4. Nc3 {[%emt 0:00:12]} c6 {[%emt 0:00:39]} 5. Bg5 {[%emt 0:00:24]} h6 {[%emt 0:00:32]} 6. Bxf6 {[%emt 0:00:06]} Qxf6 {[%emt 0:00:05]} 7. e3 {[%emt 0:00:05]} Nd7 {[%emt 0:01:26]} 8. Be2 {[%emt 0:00:16]} g6 {[%emt 0:01:17] D43: Semi-Slav: 5 Bg5 h6.} 9. O-O {[%emt 0:00:47]} Bg7 {[%emt 0:00:49]} 10. cxd5 {[%emt 0:00:30] The main line 10.cxd5 scores better than 10.e4.} exd5 {[%emt 0:04:37] White has an edge.} 11. b4 {[%emt 0:00:16]} O-O {[%emt 0:05:44]} 12. b5 {[%emt 0:00:56]} Qd6 {[%emt 0:01:39]} 13. bxc6 {[%emt 0:00:48]} bxc6 {[%emt 0:00:05]} 14. Rc1 {[%emt 0:00:10] [#]} Rb8 $146 {[%emt 0:11:58]} ({Predecessor:} 14... Nb6 15. Na4 Bf5 16. Nc5 Rab8 17. Qd2 Rfe8 18. Qa5 Re7 19. Rc3 g5 20. Rfc1 g4 {½-½ Sargsyan,S (2628)-Gelfand,B (2663) Wch Blitz Warsaw 2021 (20)}) 15. Qa4 {[%emt 0:12:37]} Rb7 {[%emt 0:07:38]} 16. Qa5 {[%emt 0:08:34]} Nb6 {[%emt 0:13:04]} 17. Nd2 {[%emt 0:03:17]} Re7 {[%emt 0:06:40]} 18. Ba6 {[%emt 0:07:57]} Rc7 {[%emt 0:11:53]} 19. Bxc8 {[%emt 0:22:48]} Rfxc8 {[%emt 0:00:52]} 20. Rc2 {[%emt 0:00:45]} Bf8 {[%emt 0:03:16]} 21. Qa6 {[%emt 0:03:20]} Qa3 {[%emt 0:05:31]} 22. Qxa3 {[%emt 0:02:19]} Bxa3 {[%emt 0:00:05]} 23. Rb1 {[%emt 0:00:28]} h5 {[%emt 0:05:07]} 24. Kf1 {[%emt 0:01:47]} Kf8 {[%emt 0:01:14]} 25. h3 {[%emt 0:01:59]} Ke8 {[%emt 0:01:07]} 26. Ke2 {[%emt 0:00:50]} Kd7 {[%emt 0:17:30]} 27. Rb3 {[%emt 0:11:43]} Be7 {[%emt 0:00:00]} 28. a4 {[%emt 0:02:13][%cal Ba2a4,Ba4a5][%mdl 32] White wants to play a5.} Ke6 {[%emt 0:00:00]} (28... c5 {looks sharper.} 29. a5 cxd4 30. axb6 Rxc3 31. Rcxc3 dxc3 32. bxa7 Bd6) 29. a5 $36 {[%emt 0:02:08][%mdl 2048] White is pushing.} Nd7 {[%emt 0:00:00]} 30. Rcb2 {[%emt 0:02:18]} Bf6 {[%emt 0:00:00]} 31. Rb1 {[%emt 0:01:57]} Be7 {[%emt 0:00:00]} 32. Nf3 {[%emt 0:00:48][%cal Bd2f3,Bf3e1,Be1d3][%mdl 32]} Bf6 {[%emt 0:00:00]} 33. Ne1 {[%emt 0:02:01]} Be7 {[%emt 0:00:00]} 34. Nd3 {[%emt 0:00:28]} Bd6 {[%emt 0:00:00]} 35. h4 {[%emt 0:02:08]} (35. Na4 $16) 35... Ke7 {[%emt 0:00:00]} (35... c5 $1 $11 36. R3b2 cxd4) 36. g3 {[%emt 0:01:33]} Kd8 {[%emt 0:00:46]} 37. Na4 {[%emt 0:02:13]} Ke7 {[%emt 0:02:56]} (37... c5 $16 {keeps fighting.}) 38. Nac5 $18 {[%emt 0:03:16]} Bxc5 {[%emt 0:00:30]} 39. dxc5 {[%emt 0:00:17]} Nf8 {[%emt 0:01:14]} 40. Nb4 {[%emt 0:05:09] White is more active.} (40. a6 $16) 40... Rd7 {[%emt 0:00:59]} 41. Na6 {[%emt 0:01:18] Black must now prevent Rb7.} Ne6 {[%emt 0:04:06]} 42. Rb7 {[%emt 0:01:33] Rxd7+ would be deadly.} Rcd8 {[%emt 0:04:25][%mdl 8192] [#] Loses the game.} ({Better is} 42... Nd8 $1 $14 43. R7b3 Ne6) 43. Nb8 $1 {[%emt 0:03:05][%mdl 64] Pin, Double Attack} Rxb7 {[%emt 0:00:06]} 44. Rxb7+ {[%emt 0:00:10][%mdl 4096] Endgame KRN-KRN} Kf6 {[%emt 0:00:04]} 45. Nd7+ {[%emt 0:03:53]} (45. Nxc6 Ra8 46. Rxa7 Rxa7 47. Nxa7 Nxc5 $18) 45... Ke7 {[%emt 0:00:42]} 46. Ne5+ {[%emt 0:01:06][%mdl 64] Discovered Attack} Kf6 {[%emt 0:00:04]} 47. f4 {[%emt 0:02:25][%csl Ge5][%cal Rb7f7] [#]} (47. Nxf7 Re8 48. Rxa7 Nxc5 $18) (47. Nxc6 Ra8 48. Rxa7 Rxa7 49. Nxa7 Nxc5 $18) 47... Nxc5 {[%emt 0:00:11]} 48. Rxf7+ {[%emt 0:01:03]} (48. Rxa7 Ke6 49. Nxf7 (49. Nxc6 Rc8 $18) 49... Rb8 50. Ng5+ Kd6 $18) 48... Ke6 {[%emt 0:00:05]} 49. Rg7 {[%emt 0:04:08]} ({Less strong is} 49. Rxa7 d4 50. exd4 (50. Nxg6 d3+ 51. Kd1 Na4 $11) 50... Rxd4 $18) (49. Nxc6 Kxf7 50. Nxd8+ Ke8 $16) 49... Rb8 {[%emt 0:01:24]} 50. Rxg6+ {[%emt 0:00:39]} Kf5 {[%emt 0:00:04]} 51. Rg5+ {[%emt 0:00:43] Weighted Error Value: White=0.09 (flawless) /Black=0.31} ({Not} 51. Rxc6 Ne4 $16) 1-0

[Event "ETCC Open 2023"]
[Site "Budva"]
[Date "2023.11.14"]
[Round "4.18"]
[White "Kobo, Ori"]
[Black "Melkumyan, Hrant"]
[Result "0-1"]
[ECO "C67"]
[WhiteElo "2556"]
[BlackElo "2650"]
[Annotator "ChessBase"]
[PlyCount "180"]
[EventDate "2023.11.10"]
[EventType "team-tourn"]
[EventCountry "MNE"]
[SourceTitle "playchess.com"]
[Source "ChessBase"]
[SourceQuality "1"]
[WhiteTeam "Israel"]
[BlackTeam "Armenia"]
[WhiteTeamCountry "ISR"]
[BlackTeamCountry "ARM"]
[TimeControl "40/5400+30:1800+30"]

1. e4 {[%emt 0:00:17]} e5 {[%emt 0:00:50]} 2. Nf3 {[%emt 0:00:17]} Nc6 {[%emt 0:00:32]} 3. Bb5 {[%emt 0:00:32]} Nf6 {[%emt 0:00:10]} 4. O-O {[%emt 0:01:01]} Nxe4 {[%emt 0:00:06]} 5. Re1 {[%emt 0:00:12]} Nd6 {[%emt 0:00:16]} 6. Nxe5 {[%emt 0:00:21]} Be7 {[%emt 0:00:07]} 7. Bf1 {[%emt 0:00:22]} Nxe5 {[%emt 0:00:08]} 8. Rxe5 {[%emt 0:00:06]} O-O {[%emt 0:00:10]} 9. d4 {[%emt 0:00:13]} Bf6 {[%emt 0:00:12]} 10. Re2 {[%emt 0:00:13]} b6 {[%emt 0:00:22]} 11. Re1 {[%emt 0:00:32]} Bb7 {[%emt 0:00:25]} 12. Bf4 {[%emt 0:01:07]} Nf5 {[%emt 0:03:36]} 13. c3 {[%emt 0:01:05]} Bg5 {[%emt 0:05:23]} 14. Qg4 {[%emt 0:04:52]} Bxf4 {[%emt 0:02:39]} 15. Qxf4 {[%emt 0:00:10]} Ne7 {[%emt 0:04:49]} 16. Nd2 {[%emt 0:04:16]} Nd5 {[%emt 0:06:03]} 17. Qg3 {[%emt 0:03:09]} Nf6 {[%emt 0:02:55]} 18. c4 {[%emt 0:12:02]} d6 {[%emt 0:08:02]} 19. d5 {[%emt 0:04:36]} Bc8 {[%emt 0:00:14]} 20. Nb3 {[%emt 0:08:11]} g6 {[%emt 0:03:11]} 21. Nd4 {[%emt 0:02:25]} Bd7 {[%emt 0:09:51]} 22. Qc3 {[%emt 0:21:04]} Re8 {[%emt 0:10:48]} 23. g3 {[%emt 0:12:40]} a5 {[%emt 0:05:08]} 24. Bg2 {[%emt 0:02:14]} Nh5 {[%emt 0:05:08]} 25. Rxe8+ {[%emt 0:03:52]} Bxe8 {[%emt 0:00:20]} 26. Bf3 {[%emt 0:01:22]} Ng7 {[%emt 0:03:32]} 27. Nc6 {[%emt 0:01:06]} Bxc6 {[%emt 0:01:09]} 28. dxc6 {[%emt 0:00:03]} Qf8 {[%emt 0:00:35]} 29. h4 {[%emt 0:05:04]} Re8 {[%emt 0:02:07]} 30. Kg2 {[%emt 0:03:00]} Re5 {[%emt 0:04:58]} 31. a3 {[%emt 0:01:59]} Qe7 {[%emt 0:02:44]} 32. b4 {[%emt 0:00:41]} Ne8 {[%emt 0:06:56]} 33. Rd1 {[%emt 0:03:21]} Nf6 {[%emt 0:01:03]} 34. Rd4 {[%emt 0:00:27]} h6 {[%emt 0:01:24]} 35. Qd3 {[%emt 0:01:54]} Rf5 {[%emt 0:03:19]} 36. Qd2 {[%emt 0:02:04]} Kg7 {[%emt 0:00:50]} 37. Rd3 {[%emt 0:00:58]} Qe6 {[%emt 0:01:57]} 38. Rd4 {[%emt 0:00:44]} Re5 {[%emt 0:01:27]} 39. Bd5 {[%emt 0:00:31]} Qe8 {[%emt 0:02:04]} 40. bxa5 {[%emt 0:00:52]} bxa5 {[%emt 0:00:26]} 41. Qc3 {[%emt 0:08:37]} Re1 {[%emt 0:07:54]} 42. Bf3 {[%emt 0:07:46]} Qe5 {[%emt 0:04:29]} 43. Rd3 {[%emt 0:00:47]} g5 {[%emt 0:06:42]} 44. hxg5 {[%emt 0:01:22]} hxg5 {[%emt 0:00:05]} 45. g4 {[%emt 0:01:09]} a4 {[%emt 0:04:00]} 46. Qxe5 {[%emt 0:07:36]} Rxe5 {[%emt 0:01:37]} 47. Rd4 {[%emt 0:00:41]} Kf8 {[%emt 0:02:02]} 48. Kf1 {[%emt 0:02:36]} Ke8 {[%emt 0:02:35]} 49. Rd1 {[%emt 0:01:38]} Rc5 {[%emt 0:01:06]} 50. Rd4 {[%emt 0:00:15]} Re5 {[%emt 0:00:59]} 51. Rd1 {[%emt 0:00:01]} Rc5 {[%emt 0:01:38]} 52. Rd4 {[%emt 0:00:03]} Ng8 {[%emt 0:02:07]} 53. Bd1 {[%emt 0:03:45]} Ne7 {[%emt 0:00:07]} 54. Bxa4 {[%emt 0:00:18]} Nxc6 {[%emt 0:00:09]} 55. Bxc6+ {[%emt 0:00:40]} Rxc6 {[%emt 0:00:02]} 56. Ke2 {[%emt 0:00:49]} Kd7 {[%emt 0:01:16]} 57. f4 {[%emt 0:00:23]} Ra6 {[%emt 0:00:41]} 58. fxg5 {[%emt 0:00:15]} Rxa3 {[%emt 0:00:02]} 59. Rf4 {[%emt 0:00:45]} Ke7 {[%emt 0:00:05]} 60. Re4+ {[%emt 0:00:24]} Kf8 {[%emt 0:00:09]} 61. c5 {[%emt 0:00:35]} Ra5 {[%emt 0:05:21]} 62. cxd6 {[%emt 0:00:08]} cxd6 {[%emt 0:00:02]} 63. Rd4 {[%emt 0:00:52]} Ke7 {[%emt 0:00:06]} 64. Ke3 {[%emt 0:00:38]} Rxg5 {[%emt 0:00:06]} 65. Kf4 {[%emt 0:00:29]} Re5 {[%emt 0:00:03]} 66. g5 {[%emt 0:00:30]} Ke6 {[%emt 0:00:08]} 67. Rd1 {[%emt 0:00:32]} d5 {[%emt 0:00:20]} 68. Ra1 {[%emt 0:00:18]} Re4+ {[%emt 0:01:04]} 69. Kf3 {[%emt 0:00:02]} Kf5 {[%emt 0:00:55]} 70. Ra5 {[%emt 0:00:47]} Re5 {[%emt 0:00:14]} 71. Ra7 {[%emt 0:00:49]} Kg6 {[%emt 0:00:03]} 72. Rd7 {[%emt 0:00:34]} Rxg5 {[%emt 0:00:11]} 73. Ke3 {[%emt 0:00:22]} Kf6 {[%emt 0:00:08]} 74. Kd4 {[%emt 0:00:29]} Ke6 {[%emt 0:00:06]} 75. Rd8 {[%emt 0:00:20]} Rg4+ {[%emt 0:00:11]} 76. Kd3 {[%emt 0:00:02]} Ra4 {[%emt 0:00:51]} 77. Re8+ {[%emt 0:00:17]} Kf5 {[%emt 0:00:57]} 78. Rd8 {[%emt 0:00:07]} Ke5 {[%emt 0:00:07]} 79. Re8+ {[%emt 0:00:12]} Kf4 {[%emt 0:00:52]} 80. Rd8 {[%emt 0:00:07]} Ra5 {[%emt 0:00:15]} 81. Ke2 {[%emt 0:00:48]} f5 {[%emt 0:00:11]} 82. Rd7 {[%emt 0:00:34]} Ra2+ {[%emt 0:00:14]} 83. Kd3 {[%emt 0:00:23]} Kg3 {[%emt 0:00:34]} 84. Rxd5 {[%emt 0:00:06]} f4 {[%emt 0:00:09]} 85. Rg5+ {[%emt 0:00:28]} Kf2 {[%emt 0:00:39]} 86. Rh5 {[%emt 0:00:08]} Ra3+ {[%emt 0:00:21]} 87. Kd2 {[%emt 0:01:04]} f3 {[%emt 0:00:07]} 88. Rg5 {[%emt 0:00:32]} Ra8 {[%emt 0:00:09]} 89. Rg7 {[%emt 0:00:17]} Rd8+ {[%emt 0:00:05]} 90. Kc2 {[%emt 0:00:05]} Kf1 {[%emt 0:00:05]} 0-1

[Event "ETCC Open 2023"]
[Site "Budva"]
[Date "2023.11.14"]
[Round "4.19"]
[White "Sargsyan, Shant"]
[Black "Nabaty, Tamir"]
[Result "1/2-1/2"]
[ECO "D11"]
[WhiteElo "2625"]
[BlackElo "2632"]
[Annotator "TA"]
[PlyCount "62"]
[EventDate "2023.11.10"]
[EventType "team-tourn"]
[EventCountry "MNE"]
[SourceTitle "playchess.com"]
[Source "ChessBase"]
[SourceQuality "1"]
[WhiteTeam "Armenia"]
[BlackTeam "Israel"]
[WhiteTeamCountry "ARM"]
[BlackTeamCountry "ISR"]
[TimeControl "40/5400+30:1800+30"]

{[%evp 9,62,-19,-11,-31,-7,-25,-30,-15,-5,-6,-10,-18,-19,-38,-27,-25,0,0,5,-8,25,25,26,26,50,35,53,50,64,54,128,85,81,83,74,79,81,82,74,77,72,8,15,18,8,15,9,17,23,0,0,0,27,10,34]} 1. d4 {[%emt 0:01:00]} d5 {[%emt 0:00:09][%cal Bd7d5,Bd5c4][%mdl 32]} 2. c4 {[%emt 0:00:24]} c6 {[%emt 0:00:12]} 3. Nf3 {[%emt 0:00:56]} dxc4 {[%emt 0:00:08]} 4. a4 {[%emt 0:06:22]} e6 {[%emt 0:02:38]} 5. g3 {[%emt 0:03:56]} c5 {[%emt 0:00:42]} 6. Bg2 {[%emt 0:01:06] D11: Slav Defence: 3 Nf3 sidelines and 3...Nf6 4 e3 Bg4.} Nc6 $1 {[%emt 0:00:42][%cal Rc5d4] [#]} 7. Na3 $146 {[%emt 0:02:50][%cal Bb1a3,Ba3c4,Bc4e5,Be5d3,Bd3f4][%mdl 32]} ({Predecessor:} 7. Be3 Nf6 8. Na3 cxd4 9. Nxd4 Bb4+ 10. Kf1 Nd5 11. Nxc6 bxc6 12. Nxc4 Ba6 13. Bxd5 cxd5 {0-1 Nguyen,D (1601)-Nguyen,Q (1857) Eastern Asia-ch U16 2021 (2)}) 7... cxd4 {[%emt 0:03:18]} 8. Nxc4 {[%emt 0:00:23] Black has an edge.} Bc5 {[%emt 0:04:24]} 9. O-O {[%emt 0:02:18]} Nge7 {[%emt 0:14:08]} 10. a5 {[%emt 0:04:50]} O-O {[%emt 0:04:10]} 11. Nfe5 {[%emt 0:02:11]} Nxe5 {[%emt 0:15:22]} 12. Nxe5 {[%emt 0:00:10]} f6 {[%emt 0:00:01]} 13. Nd3 {[%emt 0:05:47]} Bd6 {[%emt 0:00:14]} 14. Qb3 {[%emt 0:01:20] [#] a6 is the strong threat.} Rb8 {[%emt 0:07:32]} 15. Nf4 {[%emt 0:03:31][%mdl 1024] White has compensation.} Qd7 {[%emt 0:44:20]} 16. Rd1 {[%emt 0:00:59]} Be5 {[%emt 0:00:00]} 17. Bh3 $36 {[%emt 0:15:54][%cal Rh3e6][%mdl 2048] White is pushing.} f5 {[%emt 0:00:00]} 18. Bg2 {[%emt 0:02:06]} Kh8 {[%emt 0:00:00]} 19. e3 {[%emt 0:09:45] White is much more active.} Rd8 {[%emt 0:00:00]} ({Black should play} 19... Nc6 $14) 20. Nd3 {[%emt 0:13:18]} Bf6 {[%emt 0:00:00]} 21. exd4 {[%emt 0:05:23] [#] Threatens to win with Bf4.} Nc6 {[%emt 0:00:00]} 22. Bxc6 {[%emt 0:03:14]} Qxc6 {[%emt 0:00:00]} 23. Bf4 {[%emt 0:00:04]} Ra8 {[%emt 0:00:00]} 24. Be5 {[%emt 0:03:10] And now Rdc1 would win.} b6 {[%emt 0:00:19]} 25. a6 {[%emt 0:01:10] Dodges Bb7} (25. Nf4 $16) 25... Qf3 $11 {[%emt 0:00:48]} 26. Re1 {[%emt 0:04:06][%cal Bd1e1,Be1e3,Be3c3][%mdl 32] Bxf6 would be deadly.} Bxe5 {[%emt 0:00:47]} 27. Re3 {[%emt 0:00:07]} Qd5 {[%emt 0:00:47]} 28. Qxd5 {[%emt 0:04:19]} Rxd5 {[%emt 0:00:01]} 29. Nxe5 {[%emt 0:00:10]} Rxd4 {[%emt 0:01:39]} 30. Rc3 {[%emt 0:03:17]} Bd7 {[%emt 0:00:06]} (30... Rd5 $5 {[%cal Rd5e5]} 31. f4 Bd7 $11) 31. Rac1 {[%emt 0:00:26]} h6 {[%emt 0:00:32] Weighted Error Value: White=0.09 (flawless) /Black=0.09 (flawless)} 1/2-1/2

[Event "ETCC Open 2023"]
[Site "Budva"]
[Date "2023.11.14"]
[Round "4.20"]
[White "Smirin, Ilia"]
[Black "Ter-Sahakyan, Samvel"]
[Result "1/2-1/2"]
[ECO "B92"]
[WhiteElo "2578"]
[BlackElo "2618"]
[Annotator "ChessBase"]
[PlyCount "171"]
[EventDate "2023.11.10"]
[EventType "team-tourn"]
[EventCountry "MNE"]
[SourceTitle "playchess.com"]
[Source "ChessBase"]
[SourceQuality "1"]
[WhiteTeam "Israel"]
[BlackTeam "Armenia"]
[WhiteTeamCountry "ISR"]
[BlackTeamCountry "ARM"]
[TimeControl "40/5400+30:1800+30"]

1. e4 {[%emt 0:03:21]} c5 {[%emt 0:00:09]} 2. Nf3 {[%emt 0:00:18]} d6 {[%emt 0:00:06]} 3. d4 {[%emt 0:00:12]} cxd4 {[%emt 0:00:05]} 4. Nxd4 {[%emt 0:00:04]} Nf6 {[%emt 0:00:05]} 5. Nc3 {[%emt 0:00:05]} a6 {[%emt 0:00:11]} 6. Be2 {[%emt 0:00:37]} e5 {[%emt 0:00:04]} 7. Nb3 {[%emt 0:00:05]} Be7 {[%emt 0:00:05]} 8. Be3 {[%emt 0:00:23]} Be6 {[%emt 0:00:16]} 9. Nd5 {[%emt 0:00:26]} Nbd7 {[%emt 0:04:02]} 10. Qd3 {[%emt 0:00:25]} Bxd5 {[%emt 0:03:03]} 11. exd5 {[%emt 0:00:11]} Rc8 {[%emt 0:00:03]} 12. c4 {[%emt 0:01:53]} O-O {[%emt 0:09:27]} 13. O-O {[%emt 0:01:02]} h5 {[%emt 0:05:52]} 14. h3 {[%emt 0:03:22]} Re8 {[%emt 0:00:28]} 15. Rac1 {[%emt 0:03:29]} Bf8 {[%emt 0:05:45]} 16. Nd2 {[%emt 0:02:27]} a5 {[%emt 0:06:25]} 17. Nb1 {[%emt 0:04:51]} Nc5 {[%emt 0:01:36]} 18. Qd1 {[%emt 0:01:38]} g6 {[%emt 0:00:28]} 19. a3 {[%emt 0:03:00]} Qb6 {[%emt 0:17:09]} 20. Qc2 {[%emt 0:16:14]} Qb3 {[%emt 0:01:41]} 21. Nc3 {[%emt 0:00:06]} Qxc2 {[%emt 0:03:11]} 22. Rxc2 {[%emt 0:00:05]} Nb3 {[%emt 0:00:15]} 23. Rd1 {[%emt 0:01:20]} Nd7 {[%emt 0:14:19]} 24. Nb5 {[%emt 0:05:06]} a4 {[%emt 0:00:35]} 25. g4 {[%emt 0:01:24]} hxg4 {[%emt 0:01:25]} 26. hxg4 {[%emt 0:00:12]} Ndc5 {[%emt 0:00:44]} 27. g5 {[%emt 0:03:06]} Rcd8 {[%emt 0:00:51]} 28. Kg2 {[%emt 0:00:33]} Bg7 {[%emt 0:00:26]} 29. f3 {[%emt 0:08:23]} Nd4 {[%emt 0:04:37]} 30. Nxd4 {[%emt 0:00:44]} exd4 {[%emt 0:00:03]} 31. Bxd4 {[%emt 0:00:14]} Bxd4 {[%emt 0:00:09]} 32. Rxd4 {[%emt 0:00:27]} Kg7 {[%emt 0:02:27]} 33. Rh4 {[%emt 0:01:42]} Re3 {[%emt 0:02:45]} 34. Kf2 {[%emt 0:11:47]} Rde8 {[%emt 0:00:08]} 35. Rh1 {[%emt 0:05:06]} R3e5 {[%emt 0:02:47]} 36. f4 {[%emt 0:05:04]} Re3 {[%emt 0:02:15]} 37. Rh4 {[%emt 0:02:58]} Rb3 {[%emt 0:02:40]} 38. Bf1 {[%emt 0:17:10]} Re4 {[%emt 0:04:47]} 39. Rd2 {[%emt 0:00:00]} Ree3 {[%emt 0:01:39]} 40. Kg1 {[%emt 0:00:00]} Rg3+ {[%emt 0:04:49]} 41. Kh1 {[%emt 0:07:39]} Rgf3 {[%emt 0:14:41]} 42. Kg1 {[%emt 0:04:32]} Rbe3 {[%emt 0:02:02]} 43. Bg2 {[%emt 0:03:24]} Rd3 {[%emt 0:03:12]} 44. Rc2 {[%emt 0:01:38]} Rfe3 {[%emt 0:02:57]} 45. Kf2 {[%emt 0:05:34]} Re8 {[%emt 0:00:13]} 46. Rh3 {[%emt 0:02:09]} Rd4 {[%emt 0:01:31]} 47. Kg3 {[%emt 0:01:13]} Re3+ {[%emt 0:04:36]} 48. Kg4 {[%emt 0:00:37]} Re1 {[%emt 0:00:37]} 49. Rh1 {[%emt 0:01:16]} Re3 {[%emt 0:00:26]} 50. Rh3 {[%emt 0:01:12]} Rb3 {[%emt 0:00:43]} 51. Bf1 {[%emt 0:02:06]} Rd1 {[%emt 0:02:12]} 52. Be2 {[%emt 0:00:59]} Rb1 {[%emt 0:02:04]} 53. Rxb3 {[%emt 0:00:14]} axb3 {[%emt 0:00:04]} 54. Rd2 {[%emt 0:00:04]} Ne4 {[%emt 0:01:21]} 55. Rd4 {[%emt 0:00:16]} Nc5 {[%emt 0:00:03]} 56. Rd2 {[%emt 0:00:06]} Ne4 {[%emt 0:00:32]} 57. Rd4 {[%emt 0:00:05]} f5+ {[%emt 0:00:27]} 58. gxf6+ {[%emt 0:00:07]} Nxf6+ {[%emt 0:00:02]} 59. Kf3 {[%emt 0:00:15]} Rxb2 {[%emt 0:00:05]} 60. c5 {[%emt 0:01:44]} dxc5 {[%emt 0:00:05]} 61. Rd1 {[%emt 0:00:02]} Rc2 {[%emt 0:02:36]} 62. d6 {[%emt 0:00:23]} Rc3+ {[%emt 0:00:45]} 63. Kf2 {[%emt 0:01:18]} Nd7 {[%emt 0:01:12]} 64. Bb5 {[%emt 0:00:52]} b2 {[%emt 0:00:22]} 65. Rb1 {[%emt 0:00:12]} Rc2+ {[%emt 0:00:28]} 66. Ke3 {[%emt 0:00:23]} Nf8 {[%emt 0:00:55]} 67. d7 {[%emt 0:02:25]} Ne6 {[%emt 0:00:03]} 68. Kd3 {[%emt 0:02:21]} Rh2 {[%emt 0:00:12]} 69. Kc3 {[%emt 0:00:34]} Kf6 {[%emt 0:00:09]} 70. Bc4 {[%emt 0:00:48]} Nd8 {[%emt 0:00:13]} 71. Rxb2 {[%emt 0:00:07]} Rxb2 {[%emt 0:00:13]} 72. Kxb2 {[%emt 0:00:03]} Ke7 {[%emt 0:00:10]} 73. Bd3 {[%emt 0:00:09]} Ne6 {[%emt 0:00:20]} 74. Bxg6 {[%emt 0:01:08]} Nxf4 {[%emt 0:00:03]} 75. Be4 {[%emt 0:01:00]} b6 {[%emt 0:00:30]} 76. Bf5 {[%emt 0:01:06]} Ne2 {[%emt 0:02:11]} 77. a4 {[%emt 0:00:30]} Nd4 {[%emt 0:00:43]} 78. Bg4 {[%emt 0:00:31]} Nc6 {[%emt 0:00:07]} 79. Kc3 {[%emt 0:00:07]} Ne5 {[%emt 0:00:20]} 80. Bh3 {[%emt 0:00:07]} Nxd7 {[%emt 0:00:26]} 81. Kc4 {[%emt 0:00:06]} Kd6 {[%emt 0:00:47]} 82. Bxd7 {[%emt 0:00:47]} Kxd7 {[%emt 0:00:00]} 83. a5 {[%emt 0:00:06]} Kc6 {[%emt 0:00:08]} 84. axb6 {[%emt 0:00:03]} Kxb6 {[%emt 0:00:01]} 85. Kc3 {[%emt 0:00:11]} c4 {[%emt 0:00:23]} 86. Kxc4 {[%emt 0:01:52]} 1/2-1/2